Cogmind - Beta 9.6 @@@ ROGUE MODE // 2020.06.04 @ 11:11:36 Player: Wololo Result: Destroyed by G-34 Mercenary with Small Laser Performance ------------- Evolutions (1) 500 Regions Visited (2) 400 Robots Destroyed (20) 100 Value Destroyed (445) 445 Prototype IDs (0) 0 Alien Tech Used (0) 0 Bonus (0) 0 TOTAL SCORE: 1445 Bonus ------- None Cogmind --------- Core Integrity 0/400 Matter 300/300 Energy 100/100 System Corruption 0% Temperature Cool (6) Movement Core (150) Ox2 Location -9/Materials Parts ------- > --- POWER (1) -------- (None) > --- PROPULSION (3) --- (None) > --- UTILITY (3) ------ Medium Storage Unit Armor Integrity Analyzer Armor Integrity Analyzer > --- WEAPON (2) ------- (None) > --- INVENTORY (8) ---- Heat Sink Visual Processing Unit Peak State ------------ > --- POWER ------------ Ion Engine > --- PROPULSION ------- Compact Wheel > --- UTILITY ---------- Medium Storage Unit Targeting Computer Armor Integrity Analyzer > --- WEAPON ----------- High-powered Shotgun Katana > --- INVENTORY -------- Ion Engine Heat Sink Visual Processing Unit Armor Integrity Analyzer EM Pulse Cannon Grenade Launcher [Rating: 13] Favorites ----------- Power Ion Engine Engine Ion Engine Propulsion Compact Wheel Treads Light Treads Wheel Compact Wheel Flight Unit Flight Unit Utility Armor Integrity Analyzer Storage Medium Storage Unit Processor Armor Integrity Analyzer Weapon Heavy Assault Rifle Energy Gun Particle Gun Energy Cannon EM Pulse Cannon Ballistic Gun Heavy Assault Rifle Launcher Rocket Launcher Slashing Weapon Katana Build | -11 -10 -9 ------- Run | Scr Mat Mat Slots Evolved 2 | . . 2 Power . | . . . Propulsion 1 | . . 1 Utility 1 | . . 1 Weapon . | . . . Parts Attached 36 | 7 5 24 Power 4 | 1 . 3 Engine 4 | 1 . 3 Core . | . . . Reactor . | . . . Propulsion 6 | 2 . 4 Treads 1 | . . 1 Leg . | . . . Wheel 4 | 2 . 2 Hover . | . . . Flight 1 | . . 1 Utility 5 | 1 2 2 Device . | . . . Storage 2 | 1 1 . Processor 3 | . 1 2 Hackware . | . . . Protection . | . . . Artifact . | . . . Weapon 21 | 3 3 15 Energy Gun 6 | 2 1 3 Energy Cannon 3 | . . 3 Ballistic Gun 7 | 1 2 4 Ballistic Cannon . | . . . Launcher 1 | . . 1 Special Weapon . | . . . Impact Weapon . | . . . Slashing Weapon 4 | . . 4 Piercing Weapon . | . . . Special Melee Weapon . | . . . Unidentified Prototypes . | . . . Parts Lost 15 | . 1 14 Power 3 | . . 3 Propulsion 5 | . 1 4 Utility 1 | . . 1 Weapon 6 | . . 6 Highest Loss Streak 8 | . 1 8 Average Slot Usage (%) 75 | . 95 68 Engine 9 | . 14 8 Treads 4 | . . 6 Wheel 8 | . 26 1 Storage 11 | . 13 11 Processor 19 | . 11 21 Energy Gun 5 | . 16 2 Energy Cannon 1 | . . 2 Ballistic Gun 9 | . 11 9 Slashing Weapon 3 | . . 4 Naked Turns . | . . . Heaviest Build 21 | 13 19 21 Greatest Support 32 | 32 32 20 Greatest Overweight (x) 6 | . 1 6 Average Overweight (x) . | . . . Largest Inventory Capacity 8 | 6 8 8 Average Capacity 7 | 5 7 8 Most Carried 8 | 4 8 8 Average Carried 6 | 1 5 6 Final Capacity 8 | 6 8 8 Final Carried 8 | 2 8 2 Class Distribution -------------------- 100% | Mutant Dominant Class ---------------- Mutant | -10/Materials Mutant | -9/Materials Resources | -11 -10 -9 ----------- Run | Scr Mat Mat Matter Collected 622 | 249 105 268 Remotely . | . . . Salvage Created 558 | . 200 358 Parts 33 | . 13 20 Haulers Intercepted . | . . . Recyclers Shooed 2 | . 1 1 Parts Field Recycled . | . . . Retrieved Matter . | . . . Parts Self-Destructed . | . . . Prevented . | . . . Kills | -11 -10 -9 ------- Run | Scr Mat Mat Combat Hostiles Destroyed 17 | . 5 12 Melee 3 | . . 3 Guns 13 | . 5 8 Cannons 1 | . . 1 Classes Destroyed 5 | . 3 2 Tunneler 1 | . . 1 Watcher 2 | . 1 1 Swarmer 9 | . 2 7 Grunt 7 | . 3 4 Sentry 1 | . . 1 Best Kill Streak 5 | . 3 5 Combat Bots Only 5 | . 3 5 Max Kills in Single Turn 2 | . 2 2 Gunslinging 1 | . 1 1 Exploded . | . . . Melee 1 | . . 1 Uniques/NPCs Destroyed . | . . . Combat | -11 -10 -9 -------- Run | Scr Mat Mat Damage Taken 1682 | . 300 1382 Core 545 | . 140 405 Absorbed by Shields . | . . . Core Remaining (%) 72 | 100 44 . Volleys Fired 39 | . 15 24 Largest 2 | . 2 2 Hottest 115 | . 115 90 Shots Fired 64 | . 30 34 Gun 58 | . 30 28 Cannon 5 | . . 5 Launcher 1 | . . 1 Special . | . . . Kinetic 37 | . 13 24 Thermal 21 | . 17 4 Explosive 1 | . . 1 Electromagnetic 5 | . . 5 Robot Hit Streak 7 | . 7 7 Robot Miss Streak 6 | . 3 6 Penetration Max . | . . . Secondary Targets 2 | . 1 1 Max Gunslinging Chain 1 | . 1 1 Shots Hit Robots 50 | . 17 33 Core Hits 31 | . 8 23 Critical Hits . | . . . Critical Kills . | . . . Critical Parts Destroyed . | . . . Melee Attacks 17 | . . 17 Impact . | . . . Slashing 17 | . . 17 Piercing . | . . . Sneak Attacks . | . . . Combat Hostiles . | . . . Follow-up Attacks . | . . . Damage Inflicted 1182 | . 253 929 Guns 611 | . 253 358 Cannons 96 | . . 96 Explosions 143 | . . 143 Melee 317 | . . 317 Ramming 15 | . . 15 Kinetic 412 | . 119 293 Thermal 225 | . 134 91 Explosive 117 | . . 117 Electromagnetic 96 | . . 96 Impact . | . . . Slashing 317 | . . 317 Piercing . | . . . Highest Corruption . | . . . Average Corruption . | . . . Corruption Purged . | . . . Overload Shots . | . . . Overflow Damage 19 | . . 19 Projectiles . | . . . Explosions . | . . . Melee 19 | . . 19 Knockbacks . | . . . Impact . | . . . Kinetic . | . . . Secondary . | . . . Self-Inflicted Damage 6 | . . 6 Shots . | . . . Rammed 8 | . . 8 Targets Rammed 8 | . . 8 Kicked . | . . . Crushed . | . . . Highest Temperature 120 | . 120 42 Average Temperature 34 | . 41 14 Received Heat Transfer 504 | . 84 420 Siege Activations . | . . . Robots Corrupted . | . . . Combat Hostiles . | . . . Parts Fried . | . . . Impact Corruptions . | . . . Robots Melted . | . . . Combat Hostiles . | . . . Parts Melted . | . . . Heat Transferred 568 | . 370 198 Parts Sabotaged . | . . . Parts Stolen . | . . . Parts Stripped . | . . . Power Chain Reactions 1 | . . 1 Missiles Intercepted . | . . . Alert | -11 -10 -9 ------- Run | Scr Mat Mat Peak Influence 251 | . 142 251 Average Influence 94 | . 36 123 Maximum Alert Level 1 | . . 1 Low Security (%) 89 | 100 100 84 Level 1 10 | . . 15 Level 2 . | . . . Level 3 . | . . . Level 4 . | . . . Level 5 . | . . . High Security . | . . . Max Security . | . . . Squads Dispatched 2 | . 1 1 Investigation 1 | . . 1 Extermination . | . . . Reinforcement 1 | . 1 . Assault . | . . . Garrison . | . . . Intercept . | . . . Construction Impeded . | . . . Haulers Reinforced . | . . . Stealth | -11 -10 -9 --------- Run | Scr Mat Mat Distress Signals . | . . . Communications Jammed . | . . . Distress Signals . | . . . Times Spotted 31 | . 11 20 Peak Tracking Total 7 | . 7 5 Tactical Retreats 4 | . 1 3 Traps | -11 -10 -9 ------- Run | Scr Mat Mat Traps Triggered 4 | . 1 3 Indirectly . | . . . Trap Hack Attempts . | . . . Triggered . | . . . Disarmed 4 | . 4 . Reprogrammed . | . . . Reused . | . . . Traps Extracted . | . . . Installed . | . . . Triggered . | . . . Machines | -11 -10 -9 ---------- Run | Scr Mat Mat Machines Disabled 2 | . . 2 Max in Single Turn 1 | . . 1 Machines Sabotaged . | . . . Garrisons Compromised . | . . . Overloaded Fab Kills . | . . . Fab Network Shutdowns . | . . . Hacking | -11 -10 -9 --------- Run | Scr Mat Mat Machines Accessed 2 | . 1 1 Terminals 2 | . 1 1 Fabricators . | . . . Repair Stations . | . . . Recycling Units . | . . . Scanalyzers . | . . . Garrison Access . | . . . Total Hacks 4 | . 2 2 Successful 4 | . 2 2 Failed . | . . . Catastrophic . | . . . Database Lockouts . | . . . Manual . | . . . Terminals 4 | . 2 2 Fabricators . | . . . Repair Stations . | . . . Recycling Units . | . . . Scanalyzers . | . . . Garrison Access . | . . . Terminal Hacks 4 | . 2 2 Alert Level 1 | . . 1 Locate Traps 1 | . 1 . Disarm Traps 1 | . 1 . Zone Layout 1 | . . 1 Fabricator Hacks . | . . . Repair Station Hacks . | . . . Recycling Unit Hacks . | . . . Scanalyzer . | . . . Garrison Access Hacks . | . . . Unauthorized Hacks . | . . . Terminals . | . . . Fabricators . | . . . Repair Stations . | . . . Recycling Units . | . . . Scanalyzers . | . . . Garrison Access . | . . . Data Cores Recovered . | . . . Used . | . . . Hacking Detections 2 | . 1 1 Full Trace Events . | . . . Feedback Events . | . . . Feedback Blocked . | . . . Robot Schematics Acquired . | . . . Robots Built . | . . . Matter . | . . . Time . | . . . Total Robot Build Rating . | . . . Part Schematics Acquired . | . . . Parts Built . | . . . Matter . | . . . Time . | . . . Total Part Build Rating . | . . . Parts Repaired . | . . . Time . | . . . Parts Recycled . | . . . Recycled Matter . | . . . Retrieved Matter . | . . . Retrieved Components . | . . . Parts Scanalyzed . | . . . Part Schematics Acquired . | . . . Parts Damaged . | . . . Bothacking | -11 -10 -9 ------------ Run | Scr Mat Mat Used RIF Installer . | . . . Robots Hacked . | . . . Non-combat . | . . . Combat . | . . . Robot Hacks Applied . | . . . Relay Couplers Released . | . . . Robots Rewired . | . . . Allies Hacked . | . . . Hacks Repelled . | . . . Allies | -11 -10 -9 -------- Run | Scr Mat Mat Total Allies . | . . . Largest Group . | . . . Highest-Rated Group . | . . . Highest-Rated Ally . | . . . Total Orders . | . . . Ally Attacks . | . . . Total Damage . | . . . Kills . | . . . Allies Corrupted . | . . . Allies Melted . | . . . Intel | -11 -10 -9 ------- Run | Scr Mat Mat Robot Analysis Total . | . . . Derelict Logs Recovered . | . . . Drone Launches . | . . . Drone Recoveries . | . . . Exploration | -11 -10 -9 ------------- Run | Scr Mat Mat Turns Passed 1027 | 59 258 710 Spaces Moved 559 | 42 193 324 Core 66 | 11 . 55 Treads 197 | . . 197 Legs . | . . . Wheels 283 | 31 193 59 Hover . | . . . Flight 13 | . . 13 Fastest Speed 50 | 50 100 90 Average Speed 137 | 86 100 166 Slowest Speed 350 | 100 110 350 Overloaded Moves . | . . . Propulsion Burnouts . | . . . Robots Hopped . | . . . Cave-ins Triggered . | . . . Exploration Rate (%) 25 | 3 41 31 Regions Visited 2 Branch Regions . Pre-discovered Areas . | . . . Known Exits Taken . | . . . Unknown Exits Taken 2 | 1 1 . Scrap Searched . | . . . Spaces Dug . | . . . Terrain Destroyed 11 | . . 11 Melee . | . . . Projectile . | . . . AOE 11 | . . 11 Actions | -11 -10 -9 --------- Run | Scr Mat Mat Total 723 | 64 228 431 Wait 25 | 8 3 14 Move 557 | 41 192 324 Hop . | . . . Pick Up 33 | 8 10 15 Fast Attach . | . . . Attach 25 | 6 3 16 Detach . | . . . Swap 11 | 1 2 8 Drop 8 | . 3 5 Fire 39 | . 15 24 Melee 17 | . . 17 Ram 8 | . . 8 Kick . | . . . Crush . | . . . Escape Stasis . | . . . Rewire . | . . . Trap . | . . . Miscellaneous . | . . . Route ------- -11/Scrapyard -10/Materials (discovered 2 exits: *Mat x2) -9/Materials (discovered 1 exit: [*Mat]) History --------- Turn | Location | Event 14 | -11/Scrapyard | Discovered new exit (range 14) 60 | -11/Scrapyard | Entered Materials 160 | -10/Materials | Discovered new exit (range 8) 178 | -10/Materials | Core integrity fell below 50% 280 | -10/Materials | Discovered new exit (range 8) 300 | -10/Materials | Build established: Mutant 318 | -10/Materials | Entered another Materials area 318 | -9/Materials | Evolved 2 slots: Propulsion x1, Utility x1 893 | -9/Materials | Lost 4 parts (1p1n2w) 906 | -9/Materials | Discovered new exit (range 7) 932 | -9/Materials | Core integrity fell below 50% 996 | -9/Materials | Lost 8 parts (1p2n1u4w) 1020 | -9/Materials | Core integrity fell below 20% 1028 | -9/Materials | Destroyed by G-34 Mercenary with Small Laser Last Messages --------------- L-31 Rogue destroyed. T-07 Excavator destroyed. Arm. Wheel destroyed. Chain reaction triggered in Ion Engine. G-34 Mercenary IFF system glitched. K-01 Serf collects debris. G-34 Mercenary IFF system glitched. EM Pulse Cannon destroyed. Rocket Launcher destroyed. Acquired 10 matter. Acquired 19 matter. Acquired 63 matter. K-01 Serf collects debris. Slammed into L-31 Rogue. Destabilizing: System interference. Armor Integrity Analyzer temporarily disabled. Slammed into G-34 Mercenary. Destabilizing: System interference. Armor Integrity Analyzer temporarily disabled. Slammed into G-34 Mercenary. Map ----- +----------------------------------------------------+ | ######???????????????????????????????????????????? | | #???????????????????????????????????????????? | | #?????????????????????????#####?????????????? | | """" #????????????????????????## #?????????????? | | """" #????????????????????????# #???????????### | | """" #????????????????????????# ############ | | """" #????????????????????????# ## ! ## | | """" #????????????????????????# ## ## | | #????????????????????????# ## """ ## | | ######????????????????????????# ## """ ## | | ############+####???????????# ## """ ## | | ############### ## #? | | ### ######+###### #" | | ######??# % | | #####+##### #### ??# T % | | ### # #??# ??# % !% | | ??# # #??# ??# ###/######"######### | | ??# """ "" # #??# ??## ##?# ## #??? | | ??# """ """ # #### ???# #??# """ ##""" #??? | | ??# "" """ # + ???# #??# """ ##""" #??? | | ??# # ########+### #??# """ ##""" #??? | | ??# # #???# #### """ ## #??? | | ??# # #???# + """ ## #??? | | ??####/###### #???# %%%%#### #########??? | | ##### %##### ##### ######+##########??????????? | | T # @ l #?????????????????? | | ##### ########### # g%% #?????????????????? | | ##########????????# # #?????????????????? | | # """ ########## # #?????????????????? | | # """"" / + #?????????????????? | | # """"" ########## # #?????????????????? | | # """"" #????????## ##a #?????????????????? | | + """ #?????????# ## #?????????????????? | | # !#?????????# ## #?????????????????? | | # #?????????# ###########?????????????????? | | # #?????????# #???????????????????????????? | | # #?????????# #???????????????????????????? | | #############??????# #???????????????????????????? | | ????#"" " ""#??????# #???????????????????????????? | | #???# " " " #???#### #???????????????????????????? | | ##### ##### ???????????????????????????? | | ???????????????????? ????????????????????????????? | | ???????????????????? ????????????????????????????? | | ???????????????????? ????????????????????????????? | | ???????????????????? ????????????????????????????? | | ????????????????????#????????????????????????????? | | ?????????????????????????????????????????????????? | | ?????????????????????????????????????????????????? | | ?????????????????????????????????????????????????? | | ?????????????????????????????????????????????????? | +----------------------------------------------------+ Best States ------------- Heat Dissipation 28 Energy Generation 10 Energy Capacity 250 Matter Stores 300 Matter Capacity 300 Sight Range 16 Terrain Scan Density 10 Evasion (%) 50 Targeting Accuracy 5 Armor Integrity Analysis 33 Recoil Reduction 1 Item Schematics ----------------- None Robot Schematics ------------------ None Fabricated ------------ Nothing Alien Tech Used ----------------- None Achievements -------------- None Challenges ------------ None Game ------ Seed ShadeStasisSpear Manual? 0 Play Time 00:22:25 Cumulative 5.6 hours Start 2020.06.04 @ 10:43:23 End 2020.06.04 @ 11:11:36 Sessions 1 Manual Loads 0 Difficulty Rogue Special Mode None Game No. 6 Rogue 2 Adventurer 4 Explorer 0 Win Type - Total 0 Types 0/0/0/0/0/0/0 Lore% 2 Gallery% 11 Achievement% 7 Wizard Run 0 Options --------- ASCII 0 Keyboard 0 Movement Mouse Keybinds 0 Fullscreen 1 Font 12/Fuzzy Map View 83x54 Tactical HUD 0 Map Filters NONE Filters NONE Steam 1 RUN: e4a7ed80-1e2b-4d07-8934-8d8fe46cc9f7